fUSD/lending_fUSD_20250329
["ID","MTS","AMOUNT","RATE_DAILY","PERIOD"]
[356807918,1743235724674,-500.0,0.00038904,30]
[356807919,1743235724711,-500.0,0.00038904,30]
[356807920,1743235724749,-2000.0,0.00038904,30]
[356807921,1743235724787,-704.24,0.00038904,30]
[356807922,1743235724826,-1519.05,0.00038904,30]
[356807923,1743235724866,-500.0,0.00038904,30]
[356807924,1743235724905,-500.0,0.00038904,30]
[356807925,1743235724945,-500.0,0.00038904,30]
[356807926,1743235724986,-198.15728865,0.00038904,30]
[356807927,1743235725028,-500.0,0.00038904,30]
[356807928,1743235725069,-500.0,0.00038904,30]
[356807929,1743235725112,-500.0,0.00038904,30]
[356807930,1743235725155,-2474.82,0.00038904,30]
[356807931,1743235725197,-500.0,0.00038904,30]
[356807932,1743235725241,-4980.22,0.00038904,30]
[356807933,1743235725281,-944.43,0.00038904,30]
[356807934,1743235725321,-645.93794195,0.00038904,30]
[356807935,1743235725361,-172.71790595,0.00038904,30]
[356807936,1743235725400,-500.0,0.00038904,30]
[356807937,1743235725439,-501.1936898,0.00038904,30]
[356807938,1743235725479,-500.0,0.00038904,30]
[356807939,1743235725519,-500.0,0.00038904,30]
[356807940,1743235725558,-1154.76,0.00038904,30]
[356807941,1743235725599,-550.37047774,0.00038904,30]
[356807942,1743235725646,-635.2,0.00038904,30]
[356807943,1743235725692,-178.58739956,0.00038904,30]
[356807944,1743235725734,-500.0,0.00038904,30]
[356807945,1743235725775,-313.7297967,0.00038904,30]
[356807946,1743235725818,-500.0,0.00038904,30]
[356807947,1743235725861,-500.0,0.00038904,30]
[356807948,1743235725902,-500.0,0.00038904,30]
[356807949,1743235725941,-207.80433336,0.00038904,30]
[356807950,1743235725983,-1215.92,0.00038904,30]
[356807951,1743235726029,-500.0,0.00038904,30]
[356807952,1743235726071,-560.77593341,0.00038904,30]
[356807953,1743235726116,-500.0,0.00038904,30]
[356807954,1743235726159,-500.0,0.00038904,30]
[356807955,1743235726215,-174.54177525,0.00038904,30]
[356807956,1743235726262,-500.0,0.00038904,30]
[356807957,1743235726304,-555.77737321,0.00038904,30]
[356807958,1743235726346,-549.53,0.00038904,30]
[356807959,1743235726388,-841.6,0.00038904,30]
[356807960,1743235726428,-500.0,0.00038904,30]
[356807961,1743235726470,-569.39365876,0.00038904,30]
[356807962,1743235726513,-500.0,0.00038904,30]
[356807963,1743235726557,-500.0,0.00038904,30]
[356807964,1743235726697,-500.0,0.00038904,30]
[356807965,1743235726740,-500.0,0.00038904,30]
[356807966,1743235726781,-4021.44,0.00038904,30]
[356807967,1743235726825,-1673.28,0.00038904,30]
[356807968,1743235726864,-500.0,0.00038904,30]
[356807969,1743235726903,-500.0,0.00038904,30]
[356807970,1743235726945,-500.0,0.00038904,30]
[356807971,1743235726985,-500.0,0.00038904,30]
[356807972,1743235727026,-500.0,0.00038904,30]
[356807973,1743235727069,-158.51317402,0.00038904,30]
[356807974,1743235727111,-645.85,0.00038904,30]
[356807975,1743235727155,-500.0,0.00038904,30]
[356807976,1743235727201,-266.67800949,0.00038904,30]
[356807977,1743235727242,-500.0,0.00038904,30]
[356807978,1743235727284,-500.0,0.00038904,30]
[356807979,1743235727325,-500.0,0.00038904,30]
[356807980,1743235727367,-500.0,0.00038904,30]
[356807981,1743235727408,-500.0,0.00038904,30]
[356807982,1743235727450,-500.0,0.00038904,30]
[356807983,1743235727489,-539.10466927,0.00038904,30]
[356807984,1743235727529,-500.0,0.00038904,30]
[356807985,1743235727568,-484.76263211,0.00038904,30]
[356807986,1743235727612,-500.0,0.00038904,30]
[356807987,1743235727654,-500.0,0.00038904,30]
[356807988,1743235727698,-194.47942625,0.00038904,30]
[356807989,1743235727742,-583.28054674,0.00038904,30]
[356807990,1743235727783,-3232.5,0.00038904,30]
[356807991,1743235727824,-2197.43,0.00038904,30]
[356807992,1743235727864,-500.0,0.00038904,30]
[356807993,1743235727903,-691.46,0.00038904,30]
[356807994,1743235727943,-500.0,0.00038904,30]
[356807995,1743235727983,-500.0,0.00038904,30]
[356807996,1743235728026,-340.13820112,0.00038904,30]
[356807997,1743235728066,-532.80358779,0.00038904,30]
[356807998,1743235728107,-557.14457998,0.00038904,30]
[356807999,1743235728150,-500.0,0.00038904,30]
[356808000,1743235728191,-500.0,0.00038904,30]
[356808001,1743235728234,-500.0,0.00038904,30]
[356808002,1743235728276,-1187.26,0.00038904,30]
[356808003,1743235728317,-13149.44,0.00038904,30]
[356808004,1743235728370,-500.0,0.00038904,30]
[356808005,1743235728415,-500.0,0.00038904,30]
[356808006,1743235728456,-500.0,0.00038904,30]
[356808007,1743235728498,-500.0,0.00038904,30]
[356808008,1743235728540,-391.16621514,0.00038904,30]
[356808009,1743235728582,-500.0,0.00038904,30]
[356808010,1743235728625,-500.0,0.00038904,30]
[356808011,1743235728669,-268.75548351,0.00038904,30]
[356808012,1743235728713,-218.78336201,0.00038904,30]
[356808013,1743235728754,-2622.65,0.00038904,30]
[356808014,1743235728915,-1673.8,0.00038904,30]
[356808015,1743235728959,-500.0,0.00038904,30]
[356808016,1743235729004,-500.0,0.00038904,30]
[356808017,1743235729047,-500.0,0.00038904,30]
[356808018,1743235729089,-992.28,0.00038904,30]
[356808019,1743235729130,-500.0,0.00038904,30]
[356808020,1743235729171,-500.0,0.00038904,30]
[356808021,1743235729214,-312.01182525,0.00038904,30]
[356808022,1743235729255,-241.88086591,0.00038904,30]
[356808023,1743235729297,-273.72613896,0.00038904,30]
[356808024,1743235729342,-1940.15,0.00038904,30]
[356808025,1743235729383,-500.0,0.00038904,30]
[356808026,1743235729424,-304.49975203,0.00038904,30]
[356808027,1743235729464,-500.0,0.00038904,30]
[356808028,1743235729505,-49373.65,0.00038904,30]
[356808029,1743235729544,-167.14671555,0.00038904,30]
[356808030,1743235729583,-505.43281261,0.00038904,30]
[356808031,1743235729627,-446.31160507,0.00038904,30]
[356808032,1743235729668,-416.36483802,0.00038904,30]
[356808033,1743235729706,-11680.42,0.00038904,30]
[356808034,1743235729750,-500.0,0.00038904,30]
[356808035,1743235729792,-268.83827551,0.00038904,30]
[356808036,1743235729838,-2113.54,0.00038904,30]
[356808037,1743235729884,-270.117079,0.00038904,30]
[356808038,1743235729933,-500.0,0.00038904,30]
[356808039,1743235729980,-500.0,0.00038904,30]
[356808040,1743235730021,-579.24251077,0.00038904,30]
[356808041,1743235730064,-500.0,0.00038904,30]
[356808042,1743235730105,-1037.22,0.00038904,30]
[356808043,1743235730145,-500.0,0.00038904,30]
[356808044,1743235730186,-1073.54,0.00038904,30]
[356808045,1743235730225,-500.0,0.00038904,30]
[356808046,1743235730266,-500.0,0.00038904,30]
[356808047,1743235730304,-500.0,0.00038904,30]
[356808048,1743235730343,-752.06,0.00039177,30]
[356808049,1743235730382,-516.581858,0.00039178,30]
[356808050,1743235730421,-500.0,0.00039178,30]
[356808051,1743235730464,-500.0,0.00039178,30]
[356808052,1743235730505,-500.0,0.00039178,30]
[356808053,1743235730543,-500.0,0.00039178,30]
[356808054,1743235730582,-580.39891946,0.00039178,30]
[356808055,1743235730620,-500.0,0.00039178,30]
[356808056,1743235730656,-500.0,0.00039178,30]
[356808057,1743235730694,-500.0,0.00039178,30]
[356808058,1743235730731,-500.0,0.00039178,30]
[356808059,1743235730768,-500.0,0.00039178,30]
[356808060,1743235730804,-900.54,0.00039178,30]
[356808061,1743235730842,-523.43667406,0.00039178,30]
[356808062,1743235730958,-500.0,0.00039178,30]
[356808063,1743235731003,-559.15,0.00039178,30]
[356808064,1743235731045,-620.51,0.00039178,30]
[356808065,1743235731086,-500.0,0.00039178,30]
[356808066,1743235731128,-500.0,0.00039178,30]
[356808067,1743235731168,-855.45,0.00039178,30]
[356808068,1743235731209,-176.01802202,0.00039178,30]
[356808069,1743235731249,-619.49622958,0.00039178,30]
[356808070,1743235731288,-500.0,0.00039178,30]
[356808071,1743235731327,-500.0,0.00039178,30]
[356808072,1743235731365,-500.0,0.00039178,30]
[356808073,1743235731405,-500.0,0.00039178,30]
[356808074,1743235731443,-176.21037143,0.00039178,30]
[356808075,1743235731483,-500.0,0.00039178,30]
[356808076,1743235731523,-500.0,0.00039178,30]
[356808077,1743235731564,-500.0,0.00039178,30]
[356808078,1743235731606,-500.0,0.00039178,30]
[356808079,1743235731647,-500.0,0.00039178,30]
[356808080,1743235731686,-252.10435039,0.00039178,30]
[356808081,1743235731727,-1000.0,0.00039178,30]
[356808082,1743235731763,-500.0,0.00039178,30]
[356808083,1743235731800,-500.0,0.00039178,30]
[356808084,1743235731844,-455.55645552,0.00039178,30]
[356808085,1743235731886,-500.0,0.00039178,30]
[356808086,1743235731929,-347.22054,0.00039178,30]
[356808087,1743235731971,-963.21,0.00039178,30]
[356808088,1743235732012,-1734.11,0.00039178,30]
[356808089,1743235732054,-500.0,0.00039178,30]
[356808090,1743235732096,-955.85,0.00039178,30]
[356808091,1743235732137,-505.99154752,0.00039178,30]
[356808092,1743235732178,-481.7856596,0.00039178,30]
[356808093,1743235732219,-2452.46,0.00039178,30]
[356808094,1743235732260,-221.56877285,0.00039178,30]
[356808095,1743235732300,-500.0,0.00039178,30]
[356808096,1743235732341,-500.0,0.00039178,30]
[356808097,1743235732380,-500.0,0.00039178,30]
[356808098,1743235732418,-500.0,0.00039178,30]
[356808099,1743235732455,-500.0,0.00039178,30]
[356808100,1743235732493,-1389.75,0.00039178,30]
[356808101,1743235732530,-500.0,0.00039178,30]
[356808102,1743235732566,-642.17627103,0.00039178,30]
[356808103,1743235732604,-500.0,0.00039178,30]
[356808104,1743235732645,-500.0,0.00039178,30]
[356808105,1743235732682,-253.91485977,0.00039178,30]
[356808106,1743235732720,-500.0,0.00039178,30]
[356808107,1743235732757,-1145.24,0.00039178,30]
[356808108,1743235732794,-500.0,0.00039178,30]
[356808109,1743235732912,-500.0,0.00039178,30]
[356808110,1743235732962,-500.0,0.00039178,30]
[356808111,1743235733006,-500.0,0.00039178,30]
[356808112,1743235733050,-500.0,0.00039178,30]
[356808113,1743235733091,-644.97,0.00039178,30]
[356808115,1743235733129,-500.0,0.00039178,30]
[356808116,1743235733168,-620.95,0.00039178,30]
[356808117,1743235733208,-500.0,0.00039178,30]
[356808118,1743235733250,-500.0,0.00039178,30]
[356808119,1743235733290,-500.0,0.00039178,30]
[356808120,1743235733331,-500.0,0.00039178,30]
[356808121,1743235733373,-500.0,0.00039178,30]
[356808122,1743235733413,-286.64756789,0.00039178,30]
[356808123,1743235733455,-500.0,0.00039178,30]
[356808124,1743235733497,-500.0,0.00039178,30]
[356808125,1743235733540,-187.61869347,0.00039178,30]
[356808126,1743235733586,-500.0,0.00039178,30]
[356808127,1743235733631,-2000.0,0.00039178,30]
[356808128,1743235733673,-704.24,0.00039178,30]
[356808129,1743235733717,-1519.05,0.00039178,30]
[356808130,1743235733756,-196.7805739,0.00039178,30]
[356808131,1743235733802,-568.73969397,0.00039178,30]
[356808132,1743235733843,-500.0,0.00039178,30]
[356808133,1743235733886,-500.0,0.00039178,30]
[356808134,1743235733927,-315.71845933,0.00039178,30]
[356808135,1743235733966,-500.0,0.00039178,30]
[356808136,1743235734006,-2474.82,0.00039178,30]
[356808137,1743235734046,-500.0,0.00039178,30]
[356808138,1743235734088,-4980.22,0.00039178,30]
[356808139,1743235734128,-944.43,0.00039178,30]
[356808140,1743235734168,-500.0,0.00039178,30]
[356808141,1743235734213,-500.0,0.00039178,30]
[356808142,1743235734257,-500.0,0.00039178,30]
[356808143,1743235734303,-1154.76,0.00039178,30]
[356808144,1743235734342,-635.2,0.00039178,30]
[356808145,1743235734382,-500.0,0.00039178,30]
[356808146,1743235734420,-500.0,0.00039178,30]
[356808147,1743235734459,-500.0,0.00039178,30]
[356808148,1743235734498,-229.0231299,0.00039178,30]
[356808149,1743235734537,-1215.92,0.00039178,30]
[356808150,1743235734577,-500.0,0.00039178,30]
[356808151,1743235734619,-500.0,0.00039178,30]
[356808152,1743235734658,-500.0,0.00039178,30]
[356808153,1743235734696,-500.0,0.00039178,30]
[356808154,1743235734735,-549.53,0.00039178,30]
[356808155,1743235734775,-841.6,0.00039178,30]
[356808156,1743235734914,-446.7674811,0.00039178,30]
[356808157,1743235734955,-500.0,0.00039178,30]
[356808158,1743235734995,-500.0,0.00039178,30]
[356808159,1743235735035,-500.0,0.00039178,30]
[356808160,1743235735075,-500.0,0.00039178,30]
[356808161,1743235735115,-1673.28,0.00039178,30]
[356808162,1743235735153,-4021.44,0.00039178,30]
[356808163,1743235735193,-518.21886529,0.00039178,30]
[356808164,1743235735235,-500.0,0.00039178,30]
[356808165,1743235735278,-213.19219915,0.00039178,30]
[356808166,1743235735318,-500.0,0.00039178,30]
[356808167,1743235735358,-500.0,0.00039178,30]
[356808168,1743235735398,-645.85,0.00039178,30]
[356808169,1743235735440,-500.0,0.00039178,30]
[356808170,1743235735481,-500.0,0.00039178,30]
[356808171,1743235735521,-500.0,0.00039178,30]
[356808172,1743235735561,-216.04527647,0.00039178,30]
[356808173,1743235735601,-500.0,0.00039178,30]
[356808174,1743235735644,-500.0,0.00039178,30]
[356808175,1743235735687,-500.0,0.00039178,30]
[356808176,1743235735733,-570.25533098,0.00039178,30]
[356808177,1743235735774,-500.0,0.00039178,30]
[356808178,1743235735814,-234.49880216,0.00039178,30]
[356808179,1743235735853,-3232.5,0.00039178,30]
[356808180,1743235735907,-2197.43,0.00039178,30]
[356808181,1743235735950,-500.0,0.00039178,30]
[356808182,1743235735991,-691.46,0.00039178,30]
[356808183,1743235736034,-500.0,0.00039178,30]
[356808184,1743235736074,-500.0,0.00039178,30]
[356808185,1743235736115,-500.0,0.00039178,30]
[356808186,1743235736157,-500.0,0.00039178,30]
[356808187,1743235736198,-500.0,0.00039178,30]
[356808188,1743235736239,-1187.26,0.00039178,30]
[356808189,1743235736281,-13149.44,0.00039178,30]
[356808190,1743235736323,-500.0,0.00039178,30]
[356808191,1743235736365,-500.0,0.00039178,30]
[356808192,1743235736405,-500.0,0.00039178,30]
[356808193,1743235736444,-418.84664448,0.00039178,30]
[356808194,1743235736483,-317.68834678,0.00039178,30]
[356808195,1743235736523,-500.0,0.00039178,30]
[356808196,1743235736562,-2622.65,0.00039178,30]
[356808197,1743235736601,-1673.8,0.00039178,30]
[356808198,1743235736651,-500.0,0.00039178,30]
[356808199,1743235736826,-500.0,0.00039178,30]
[356808200,1743235736883,-603.65289622,0.00039178,30]
[356808201,1743235736924,-992.28,0.00039178,30]
[356808202,1743235736968,-500.0,0.00039178,30]
[356808203,1743235737014,-500.0,0.00039178,30]
[356808204,1743235737064,-1940.15,0.00039178,30]
[356808205,1743235737110,-500.0,0.00039178,30]
[356808206,1743235737152,-500.0,0.00039178,30]
[356808207,1743235737194,-49373.65,0.00039178,30]
[356808208,1743235737238,-11680.42,0.00039178,30]
[356808209,1743235737280,-500.0,0.00039178,30]
[356808210,1743235737325,-2113.54,0.00039178,30]
[356808211,1743235737372,-500.0,0.00039178,30]
[356808212,1743235737413,-500.0,0.00039178,30]
[356808213,1743235737453,-344.33238936,0.00039178,30]
[356808214,1743235737492,-1037.22,0.00039178,30]
[356808215,1743235737531,-165.38177281,0.00039178,30]
[356808216,1743235737572,-1073.54,0.00039178,30]
[356808217,1743235737618,-500.0,0.00039178,30]
[356808218,1743235737657,-594.17608506,0.00039178,30]
[356808219,1743235737697,-500.0,0.00039178,30]
[356808220,1743235737739,-752.06,0.00039247,30]
[356808221,1743235737779,-1000.0,0.00039356,60]
[356808222,1743235737821,-500.0,0.00039356,60]
[356808223,1743235737863,-500.0,0.00039356,60]
[356808224,1743235737905,-752.06,0.00039451,30]
[356808225,1743235737945,-752.06,0.00039451,30]
[356808226,1743235737986,-752.06,0.00039451,30]
[356808227,1743235738027,-752.06,0.00039451,30]
[356808228,1743235738066,-752.27469186,0.00039451,30]
[356808229,1743235738105,-516.581858,0.00039452,30]
[356808230,1743235738145,-436.56,0.00039452,30]
[356808231,1743235738185,-500.0,0.00039452,30]
[356808232,1743235738226,-515.6587295,0.00039452,30]
[356808233,1743235738267,-500.0,0.00039452,30]
[356808234,1743235738307,-500.0,0.00039452,30]
[356808235,1743235738348,-500.0,0.00039452,30]
[356808236,1743235738387,-500.0,0.00039452,30]
[356808237,1743235738426,-500.0,0.00039452,30]
[356808238,1743235738467,-500.0,0.00039452,30]
[356808239,1743235738507,-900.54,0.00039452,30]
[356808240,1743235738547,-500.0,0.00039452,30]
[356808241,1743235738585,-559.15,0.00039452,30]
[356808242,1743235738724,-620.51,0.00039452,30]
[356808243,1743235738765,-500.0,0.00039452,30]
[356808244,1743235738806,-500.0,0.00039452,30]
[356808245,1743235738846,-855.45,0.00039452,30]
[356808246,1743235738886,-506.45680044,0.00039452,30]
[356808247,1743235738927,-500.0,0.00039452,30]
[356808248,1743235738967,-500.0,0.00039452,30]
[356808249,1743235739009,-562.27027165,0.00039452,30]
[356808250,1743235739049,-367.38912919,0.00039452,30]
[356808251,1743235739088,-500.0,0.00039452,30]
[356808252,1743235739129,-500.0,0.00039452,30]
[356808253,1743235739170,-312.30601065,0.00039452,30]
[356808254,1743235739210,-500.0,0.00039452,30]
[356808255,1743235739250,-1000.0,0.00039452,30]
[356808256,1743235739289,-500.0,0.00039452,30]
[356808257,1743235739328,-500.0,0.00039452,30]
[356808258,1743235739367,-500.0,0.00039452,30]
[356808259,1743235739406,-347.22054,0.00039452,30]
[356808260,1743235739443,-963.21,0.00039452,30]
[356808261,1743235739481,-1734.11,0.00039452,30]
[356808262,1743235739518,-500.0,0.00039452,30]
[356808263,1743235739557,-955.85,0.00039452,30]
[356808264,1743235739596,-2452.46,0.00039452,30]
[356808265,1743235739637,-500.0,0.00039452,30]
[356808266,1743235739675,-500.0,0.00039452,30]
[356808267,1743235739716,-500.0,0.00039452,30]
[356808268,1743235739754,-500.0,0.00039452,30]
[356808269,1743235739790,-500.0,0.00039452,30]
[356808270,1743235739827,-1389.75,0.00039452,30]
[356808271,1743235739866,-500.0,0.00039452,30]
[356808272,1743235739906,-500.0,0.00039452,30]
[356808273,1743235739945,-500.0,0.00039452,30]
[356808274,1743235739984,-500.0,0.00039452,30]
[356808275,1743235740021,-1145.24,0.00039452,30]
[356808276,1743235740060,-261.10928375,0.00039452,30]
[356808277,1743235740100,-500.0,0.00039452,30]
[356808278,1743235740139,-185.21673144,0.00039452,30]
[356808279,1743235740179,-473.22060995,0.00039452,30]
[356808280,1743235740219,-500.0,0.00039452,30]
[356808281,1743235740258,-644.97,0.00039452,30]
[356808282,1743235740297,-195.48410014,0.00039452,30]
[356808283,1743235740415,-620.95,0.00039452,30]
[356808284,1743235740459,-500.0,0.00039452,30]
[356808285,1743235740499,-500.0,0.00039452,30]
[356808286,1743235740538,-500.0,0.00039452,30]
[356808287,1743235740580,-500.0,0.00039452,30]
[356808288,1743235740624,-500.0,0.00039452,30]
[356808289,1743235740663,-625.74328294,0.00039452,30]
[356808290,1743235740703,-500.0,0.00039452,30]
[356808291,1743235740746,-435.93848247,0.00039452,30]
[356808292,1743235740787,-2047.34004528,0.00039452,30]
[356808293,1743235740832,-704.24,0.00039452,30]
[356808294,1743235740875,-1519.05,0.00039452,30]
[356808295,1743235740920,-500.0,0.00039452,30]
[356808296,1743235740968,-500.0,0.00039452,30]
[356808297,1743235741012,-500.0,0.00039452,30]
[356808298,1743235741055,-2474.82,0.00039452,30]
[356808299,1743235741094,-362.74917879,0.00039452,30]
[356808300,1743235741134,-4980.22,0.00039452,30]
[356808301,1743235741173,-944.43,0.00039452,30]
[356808302,1743235741230,-500.0,0.00039452,30]
[356808303,1743235741302,-500.0,0.00039452,30]
[356808304,1743235741368,-207.63181677,0.00039452,30]
[356808305,1743235741435,-1154.76,0.00039452,30]
[356808306,1743235741501,-635.2,0.00039452,30]
[356808307,1743235741561,-500.0,0.00039452,30]
[356808308,1743235741618,-162.91784546,0.00039452,30]
[356808309,1743235741674,-500.0,0.00039452,30]
[356808310,1743235741733,-1215.92,0.00039452,30]
[356808311,1743235741790,-500.0,0.00039452,30]
[356808312,1743235741848,-500.0,0.00039452,30]
[356808313,1743235741906,-500.0,0.00039452,30]
[356808314,1743235741960,-500.0,0.00039452,30]
[356808315,1743235742019,-549.53,0.00039452,30]
[356808316,1743235742077,-841.6,0.00039452,30]
[356808317,1743235742137,-500.0,0.00039452,30]
[356808318,1743235742197,-500.0,0.00039452,30]
[356808319,1743235742257,-506.25524188,0.00039452,30]
[356808320,1743235742315,-500.0,0.00039452,30]
[356808321,1743235742372,-1673.28,0.00039452,30]
[356808322,1743235742550,-4021.44,0.00039452,30]
[356808323,1743235742589,-500.0,0.00039452,30]
[356808324,1743235742628,-248.67597029,0.00039452,30]
[356808325,1743235742665,-500.0,0.00039452,30]
[356808326,1743235742700,-645.85,0.00039452,30]
[356808327,1743235742737,-500.0,0.00039452,30]
[356808328,1743235742773,-611.85274714,0.00039452,30]
[356808329,1743235742810,-500.0,0.00039452,30]
[356808330,1743235742849,-543.08642364,0.00039452,30]
[356808331,1743235742887,-500.0,0.00039452,30]
[356808332,1743235742923,-300.33493773,0.00039452,30]
[356808333,1743235742964,-500.0,0.00039452,30]
[356808334,1743235743005,-3232.5,0.00039452,30]
[356808335,1743235743048,-2197.43,0.00039452,30]
[356808336,1743235743092,-500.0,0.00039452,30]
[356808337,1743235743134,-691.46,0.00039452,30]
[356808338,1743235743177,-500.0,0.00039452,30]
[356808339,1743235743221,-500.0,0.00039452,30]
[356808340,1743235743267,-500.0,0.00039452,30]
[356808341,1743235743311,-500.0,0.00039452,30]
[356808342,1743235743353,-500.0,0.00039452,30]
[356808343,1743235743396,-1187.26,0.00039452,30]
[356808344,1743235743442,-13149.44,0.00039452,30]
[356808345,1743235743487,-500.0,0.00039452,30]
[356808346,1743235743530,-500.0,0.00039452,30]
[356808347,1743235743574,-500.0,0.00039452,30]
[356808348,1743235743620,-500.0,0.00039452,30]
[356808349,1743235743663,-2622.65,0.00039452,30]
[356808350,1743235743707,-1673.8,0.00039452,30]
[356808351,1743235743751,-446.53736325,0.00039452,30]
[356808352,1743235743795,-500.0,0.00039452,30]
[356808353,1743235743837,-992.28,0.00039452,30]
[356808354,1743235743878,-500.0,0.00039452,30]
[356808355,1743235743920,-500.0,0.00039452,30]
[356808356,1743235743963,-1940.15,0.00039452,30]
[356808357,1743235744004,-500.0,0.00039452,30]
[356808358,1743235744046,-500.0,0.00039452,30]
[356808359,1743235744090,-49373.65,0.00039452,30]
[356808360,1743235744134,-11680.42,0.00039452,30]
[356808361,1743235744178,-500.0,0.00039452,30]
[356808362,1743235744222,-2113.54,0.00039452,30]
[356808363,1743235744266,-500.0,0.00039452,30]
[356808364,1743235744312,-500.0,0.00039452,30]
[356808365,1743235744355,-1037.22,0.00039452,30]
[356808366,1743235744399,-1073.54,0.00039452,30]
[356808367,1743235744442,-500.0,0.00039452,30]
[356808368,1743235744486,-500.0,0.00039452,30]
[356808369,1743235744527,-516.581858,0.00039726,30]
[356808370,1743235744568,-603.11,0.00039726,30]
[356808371,1743235744609,-500.0,0.00039726,30]
[356808372,1743235744653,-500.0,0.00039726,30]
[356808373,1743235744693,-532.74814688,0.00039726,30]
[356808374,1743235744734,-500.0,0.00039726,30]
[356808375,1743235744774,-253.56921486,0.00039726,30]
[356808376,1743235744905,-500.0,0.00039726,30]
[356808377,1743235744948,-900.54,0.00039726,30]
[356808378,1743235744988,-500.0,0.00039726,30]
[356808379,1743235745030,-559.15,0.00039726,30]
[356808380,1743235745070,-620.51,0.00039726,30]
[356808381,1743235745109,-500.0,0.00039726,30]
[356808382,1743235745149,-500.0,0.00039726,30]
[356808383,1743235745189,-855.45,0.00039726,30]
[356808384,1743235745229,-500.0,0.00039726,30]
[356808385,1743235745269,-500.0,0.00039726,30]
[356808386,1743235745307,-500.0,0.00039726,30]
[356808387,1743235745345,-500.0,0.00039726,30]
[356808388,1743235745382,-500.0,0.00039726,30]
[356808389,1743235745420,-1000.0,0.00039726,30]
[356808390,1743235745459,-500.0,0.00039726,30]
[356808391,1743235745496,-500.0,0.00039726,30]
[356808392,1743235745532,-500.0,0.00039726,30]
[356808393,1743235745569,-347.22054,0.00039726,30]
[356808394,1743235745606,-963.21,0.00039726,30]
[356808395,1743235745647,-1734.11,0.00039726,30]
[356808396,1743235745683,-500.0,0.00039726,30]
[356808397,1743235745721,-955.85,0.00039726,30]
[356808398,1743235745761,-2452.46,0.00039726,30]
[356808399,1743235745800,-500.0,0.00039726,30]
[356808400,1743235745840,-500.0,0.00039726,30]
[356808401,1743235745876,-500.0,0.00039726,30]
[356808402,1743235745916,-500.0,0.00039726,30]
[356808403,1743235745954,-500.0,0.00039726,30]
[356808404,1743235745996,-1389.75,0.00039726,30]
[356808405,1743235746050,-500.0,0.00039726,30]
[356808406,1743235746088,-500.0,0.00039726,30]
[356808407,1743235746128,-207.33488215,0.00039726,30]
[356808408,1743235746167,-500.0,0.00039726,30]
[356808409,1743235746205,-1145.24,0.00039726,30]
[356808410,1743235746242,-500.0,0.00039726,30]
[356808411,1743235746280,-500.0,0.00039726,30]
[356808412,1743235746317,-644.97,0.00039726,30]
[356808413,1743235746353,-620.95,0.00039726,30]
[356808414,1743235746392,-500.0,0.00039726,30]
[356808415,1743235746429,-500.0,0.00039726,30]
[356808416,1743235746465,-500.0,0.00039726,30]
[356808417,1743235746502,-500.0,0.00039726,30]
[356808418,1743235746538,-500.0,0.00039726,30]